[Event "Asian Amateur Rapid Women 2024"]
[Site "Al Ain"]
[Date "2024.12.15"]
[Round "3.18"]
[White "Al Dhaffari, Salma"]
[Black "Mikheeva, Vasilisa"]
[Result "0-1"]
[ECO "D07"]
[WhiteElo "1619"]
[BlackElo "1436"]
[Annotator "NA RC"]
[PlyCount "60"]
[EventDate "2024.12.15"]
[EventType "swiss"]
[EventCountry "UAE"]
[SourceTitle "playchess.com"]
[Source "ChessBase"]
[SourceQuality "1"]
[TimeControl "900+10"]

1. d4 {[%emt 0:00:04]} d5 {[%emt 0:00:02]} 2. c4 {[%emt 0:00:01]} dxc4 {[%emt 0:00:06]} 3. Nc3 {[%emt 0:00:01]} Nc6 {[%emt 0:00:03]} 4. Nf3 {[%emt 0:00:01]} Nf6 {[%emt 0:00:03]} 5. Bf4 {[%emt 0:00:12]} a6 {[%emt 0:00:04]} 6. a4 {[%emt 0:00:01]} Bf5 {[%emt 0:00:11]} 7. e3 {[%emt 0:00:05]} e6 {[%emt 0:00:18]} 8. Bxc4 {[%emt 0:00:02]} Bb4 {[%emt 0:00:16]} 9. O-O {[%emt 0:00:18]} O-O {[%emt 0:00:07]} 10. Bd3 {[%emt 0:00:47]} Bxd3 {[%emt 0:00:34]} 11. Qxd3 {[%emt 0:00:02]} h6 {[%emt 0:00:03]} 12. Ne4 {[%emt 0:00:43]} Nxe4 {[%emt 0:00:35]} 13. Qxe4 {[%emt 0:00:02]} Bd6 {[%emt 0:00:29]} 14. Ne5 {[%emt 0:02:20]} Bxe5 {[%emt 0:00:43]} 15. Bxe5 {[%emt 0:00:03]} Nxe5 {[%emt 0:00:08]} 16. Qxe5 {[%emt 0:00:01]} Re8 {[%emt 0:00:19]} 17. Rfc1 {[%emt 0:00:18]} c6 {[%emt 0:00:35]} 18. Qg3 {[%emt 0:01:11]} Qe7 {[%emt 0:00:43]} 19. Rc5 {[%emt 0:00:18]} Rad8 {[%emt 0:00:41]} 20. Rh5 {[%emt 0:01:41]} Kh8 {[%emt 0:00:43]} 21. h4 {[%emt 0:03:14]} Rd5 {[%emt 0:01:14]} 22. Rxd5 {[%emt 0:00:02]} exd5 {[%emt 0:00:05]} 23. b3 {[%emt 0:01:22]} Rd8 {[%emt 0:02:00]} 24. Qf4 {[%emt 0:00:48]} Rd6 {[%emt 0:00:55]} 25. Rc1 {[%emt 0:01:53]} Rf6 {[%emt 0:00:21]} 26. Qb8+ {[%emt 0:00:43]} Kh7 {[%emt 0:00:06]} 27. Rc5 {[%emt 0:01:48]} Qe4 {[%emt 0:01:25]} 28. g3 {[%emt 0:01:12]} Rg6 {[%emt 0:00:24]} 29. Qf4 {[%emt 0:00:05]} Qb1+ {[%emt 0:00:49]} 30. Kh2 {[%emt 0:00:19]} Rf6 {[%emt 0:01:18]} 0-1

[Event "Asian Amateur Rapid Women 2024"]
[Site "Al Ain"]
[Date "2024.12.15"]
[Round "4.1"]
[White "Antonova, Nadezhda"]
[Black "Wijesuriya, G P Y"]
[Result "0-1"]
[ECO "A41"]
[WhiteElo "1989"]
[BlackElo "1867"]
[Annotator "RC"]
[PlyCount "64"]
[EventDate "2024.12.15"]
[EventType "swiss"]
[EventCountry "UAE"]
[SourceTitle "playchess.com"]
[Source "ChessBase"]
[SourceQuality "1"]
[TimeControl "900+10"]

1. Nf3 {[%emt 0:00:01]} Nf6 {[%emt 0:00:17]} 2. c4 {[%emt 0:00:05]} Nc6 {[%emt 0:00:14]} 3. d4 {[%emt 0:00:40]} d6 {[%emt 0:00:07]} 4. d5 {[%emt 0:00:55]} Ne5 {[%emt 0:00:09]} 5. Nxe5 {[%emt 0:00:16]} dxe5 {[%emt 0:00:03]} 6. Nc3 {[%emt 0:00:01]} e6 {[%emt 0:00:05]} 7. e4 {[%emt 0:00:07]} Bd7 {[%emt 0:00:17]} 8. a3 {[%emt 0:00:57]} exd5 {[%emt 0:00:33]} 9. cxd5 {[%emt 0:00:10]} Bc5 {[%emt 0:00:10]} 10. Be2 {[%emt 0:00:11]} O-O {[%emt 0:00:05]} 11. O-O {[%emt 0:00:03]} Bd4 {[%emt 0:00:39]} 12. Bf3 {[%emt 0:00:39]} c6 {[%emt 0:00:08]} 13. Bg5 {[%emt 0:01:21]} h6 {[%emt 0:00:17]} 14. Bh4 {[%emt 0:00:09]} g5 {[%emt 0:00:29]} 15. Bg3 {[%emt 0:00:02]} cxd5 {[%emt 0:00:02]} 16. exd5 {[%emt 0:00:47]} Qb6 {[%emt 0:02:03]} 17. Qd2 {[%emt 0:02:02]} Bf5 {[%emt 0:02:34]} 18. Be2 {[%emt 0:03:42]} Rac8 {[%emt 0:00:47]} 19. h4 {[%emt 0:00:09]} Bxc3 {[%emt 0:02:14]} 20. bxc3 {[%emt 0:00:20]} Ne4 {[%emt 0:00:02]} 21. Qe3 {[%emt 0:05:23]} Qxe3 {[%emt 0:00:02]} 22. fxe3 {[%emt 0:00:01]} Nxg3 {[%emt 0:00:03]} 23. Rxf5 {[%emt 0:00:01]} Nxf5 {[%emt 0:00:40]} 24. Bg4 {[%emt 0:00:02]} Nxe3 {[%emt 0:00:05]} 25. Bxc8 {[%emt 0:00:32]} Rxc8 {[%emt 0:00:02]} 26. hxg5 {[%emt 0:00:02]} hxg5 {[%emt 0:00:03]} 27. d6 {[%emt 0:00:06]} Rd8 {[%emt 0:00:04]} 28. Re1 {[%emt 0:00:02]} Nc4 {[%emt 0:00:02]} 29. Re4 {[%emt 0:00:02]} b5 {[%emt 0:00:02]} 30. a4 {[%emt 0:00:06]} a6 {[%emt 0:00:01]} 31. axb5 {[%emt 0:00:01]} axb5 {[%emt 0:00:01]} 32. Rg4 {[%emt 0:00:00]} f6 {[%emt 0:00:02]} 0-1

[Event "Asian Amateur Rapid Women 2024"]
[Site "Al Ain"]
[Date "2024.12.15"]
[Round "4.2"]
[White "Anoud Eisa Mohamed"]
[Black "Asudani Ruhani Raj"]
[Result "1-0"]
[ECO "B30"]
[WhiteElo "1884"]
[BlackElo "1613"]
[Annotator "NA RC"]
[PlyCount "73"]
[EventDate "2024.12.15"]
[EventType "swiss"]
[EventCountry "UAE"]
[SourceTitle "playchess.com"]
[Source "ChessBase"]
[SourceQuality "1"]
[TimeControl "900+10"]

1. e4 {[%emt 0:00:07]} c5 {[%emt 0:00:01]} 2. Nf3 {[%emt 0:00:03]} Nc6 {[%emt 0:00:01]} 3. Bb5 {[%emt 0:00:02]} e6 {[%emt 0:00:02]} 4. O-O {[%emt 0:00:03]} Nge7 {[%emt 0:00:01]} 5. Re1 {[%emt 0:00:03]} a6 {[%emt 0:00:03]} 6. Bf1 {[%emt 0:00:03]} d5 {[%emt 0:00:10]} 7. exd5 {[%emt 0:00:09]} exd5 {[%emt 0:00:03]} 8. d4 {[%emt 0:00:02]} c4 {[%emt 0:00:09]} 9. b3 {[%emt 0:00:59]} b5 {[%emt 0:00:30]} 10. a4 {[%emt 0:00:09]} Be6 {[%emt 0:00:25]} 11. Ng5 {[%emt 0:00:09]} Qc8 {[%emt 0:01:00]} 12. Nxe6 {[%emt 0:00:17]} fxe6 {[%emt 0:00:14]} 13. axb5 {[%emt 0:00:02]} axb5 {[%emt 0:00:40]} 14. Rxa8 {[%emt 0:00:02]} Qxa8 {[%emt 0:00:02]} 15. Rxe6 {[%emt 0:00:05]} Kf7 {[%emt 0:00:28]} 16. Re1 {[%emt 0:00:45]} Nf5 {[%emt 0:00:28]} 17. c3 {[%emt 0:00:11]} Bd6 {[%emt 0:00:51]} 18. Qf3 {[%emt 0:00:04]} Nce7 {[%emt 0:00:43]} 19. g4 {[%emt 0:01:04]} Rf8 {[%emt 0:00:31]} 20. gxf5 {[%emt 0:00:16]} Kg8 {[%emt 0:00:02]} 21. bxc4 {[%emt 0:00:22]} Rxf5 {[%emt 0:00:14]} 22. Qe2 {[%emt 0:00:17]} Rf6 {[%emt 0:00:40]} 23. cxb5 {[%emt 0:00:39]} Qb8 {[%emt 0:01:06]} 24. Kh1 {[%emt 0:00:29]} Qf8 {[%emt 0:00:29]} 25. Bg2 {[%emt 0:02:30]} Kh8 {[%emt 0:00:34]} 26. f3 {[%emt 0:01:10]} Rf5 {[%emt 0:00:49]} 27. Ba3 {[%emt 0:01:56]} Bxa3 {[%emt 0:01:40]} 28. Nxa3 {[%emt 0:00:02]} Ng6 {[%emt 0:00:34]} 29. Qe8 {[%emt 0:00:12]} Kg8 {[%emt 0:00:11]} 30. Qxf8+ {[%emt 0:00:05]} Rxf8 {[%emt 0:00:02]} 31. Rb1 {[%emt 0:00:29]} Ra8 {[%emt 0:00:08]} 32. b6 {[%emt 0:00:08]} Ne7 {[%emt 0:00:06]} 33. Nb5 {[%emt 0:00:28]} Rb8 {[%emt 0:00:11]} 34. Nc7 {[%emt 0:00:03]} Kf7 {[%emt 0:00:10]} 35. f4 {[%emt 0:00:02]} Kf6 {[%emt 0:00:10]} 36. Nxd5+ {[%emt 0:00:07]} Nxd5 {[%emt 0:00:02]} 37. Bxd5 {[%emt 0:00:02]} 1-0

[Event "Asian Amateur Rapid Women 2024"]
[Site "Al Ain"]
[Date "2024.12.15"]
[Round "4.3"]
[White "Marksim Karki Abirami, Sriiyukthaa"]
[Black "Sananda R"]
[Result "0-1"]
[ECO "E06"]
[WhiteElo "1466"]
[BlackElo "1696"]
[Annotator "NA RC"]
[PlyCount "110"]
[EventDate "2024.12.15"]
[EventType "swiss"]
[EventCountry "UAE"]
[SourceTitle "playchess.com"]
[Source "ChessBase"]
[SourceQuality "1"]
[TimeControl "900+10"]

1. d4 {[%emt 0:00:10]} Nf6 {[%emt 0:00:01]} 2. c4 {[%emt 0:00:04]} e6 {[%emt 0:00:02]} 3. g3 {[%emt 0:00:03]} d5 {[%emt 0:00:05]} 4. Bg2 {[%emt 0:00:04]} Be7 {[%emt 0:00:11]} 5. Nf3 {[%emt 0:00:03]} Nc6 {[%emt 0:00:55]} 6. O-O {[%emt 0:01:01]} O-O {[%emt 0:00:05]} 7. Nbd2 {[%emt 0:00:06]} h6 {[%emt 0:01:32]} 8. Qc2 {[%emt 0:00:22]} Rb8 {[%emt 0:03:54]} 9. a4 {[%emt 0:00:29]} Nb4 {[%emt 0:00:47]} 10. Qd1 {[%emt 0:00:21]} b6 {[%emt 0:00:10]} 11. cxd5 {[%emt 0:00:06]} exd5 {[%emt 0:00:14]} 12. Re1 {[%emt 0:00:19]} Bf5 {[%emt 0:00:08]} 13. e4 {[%emt 0:00:36]} Nxe4 {[%emt 0:00:24]} 14. Nxe4 {[%emt 0:00:03]} Bxe4 {[%emt 0:00:02]} 15. Ne5 {[%emt 0:00:03]} Bxg2 {[%emt 0:00:46]} 16. Kxg2 {[%emt 0:00:03]} Bd6 {[%emt 0:00:13]} 17. Bd2 {[%emt 0:00:06]} Bxe5 {[%emt 0:00:41]} 18. Bxb4 {[%emt 0:00:08]} Bd6 {[%emt 0:00:01]} 19. Bxd6 {[%emt 0:00:05]} Qxd6 {[%emt 0:00:03]} 20. Rc1 {[%emt 0:00:03]} Rfe8 {[%emt 0:00:37]} 21. Rxe8+ {[%emt 0:00:09]} Rxe8 {[%emt 0:00:02]} 22. Qc2 {[%emt 0:00:05]} Re7 {[%emt 0:00:10]} 23. Qc6 {[%emt 0:00:08]} Qxc6 {[%emt 0:00:46]} 24. Rxc6 {[%emt 0:01:37]} Kf8 {[%emt 0:00:08]} 25. a5 {[%emt 0:00:21]} Ke8 {[%emt 0:00:17]} 26. b4 {[%emt 0:00:06]} Kd7 {[%emt 0:00:06]} 27. b5 {[%emt 0:00:04]} Re4 {[%emt 0:00:27]} 28. Rc3 {[%emt 0:01:31]} Rxd4 {[%emt 0:00:08]} 29. Rb3 {[%emt 0:00:07]} bxa5 {[%emt 0:00:26]} 30. Ra3 {[%emt 0:00:10]} a4 {[%emt 0:00:01]} 31. Kf3 {[%emt 0:00:02]} Rb4 {[%emt 0:00:11]} 32. Ke2 {[%emt 0:00:06]} Kd6 {[%emt 0:00:12]} 33. Kd2 {[%emt 0:00:30]} Kc5 {[%emt 0:00:09]} 34. Rf3 {[%emt 0:00:20]} f6 {[%emt 0:00:02]} 35. Rf5 {[%emt 0:00:10]} Rxb5 {[%emt 0:00:20]} 36. Kc3 {[%emt 0:00:08]} Rb3+ {[%emt 0:00:02]} 37. Kc2 {[%emt 0:00:04]} c6 {[%emt 0:00:26]} 38. Rf4 {[%emt 0:00:08]} Rb4 {[%emt 0:00:03]} 39. Rf3 {[%emt 0:00:07]} Rc4+ {[%emt 0:00:06]} 40. Kb2 {[%emt 0:00:07]} Kb4 {[%emt 0:00:03]} 41. h4 {[%emt 0:00:13]} a3+ {[%emt 0:00:03]} 42. Rxa3 {[%emt 0:00:21]} Rc2+ {[%emt 0:00:06]} 43. Kxc2 {[%emt 0:00:02]} Kxa3 {[%emt 0:00:02]} 44. f4 {[%emt 0:00:02]} Kb4 {[%emt 0:00:06]} 45. g4 {[%emt 0:00:03]} a5 {[%emt 0:00:01]} 46. g5 {[%emt 0:00:05]} a4 {[%emt 0:00:02]} 47. Kb2 {[%emt 0:00:13]} a3+ {[%emt 0:00:03]} 48. Ka2 {[%emt 0:00:02]} d4 {[%emt 0:00:03]} 49. gxf6 {[%emt 0:00:04]} gxf6 {[%emt 0:00:01]} 50. f5 {[%emt 0:00:04]} d3 {[%emt 0:00:02]} 51. Kb1 {[%emt 0:00:05]} Kc3 {[%emt 0:00:02]} 52. Ka2 {[%emt 0:00:03]} d2 {[%emt 0:00:05]} 53. Kxa3 {[%emt 0:00:02]} d1=Q {[%emt 0:00:05]} 54. Ka2 {[%emt 0:00:03]} Qb3+ {[%emt 0:00:03]} 55. Ka1 {[%emt 0:00:07]} Qb2# {[%emt 0:00:00]} 0-1

[Event "Asian Amateur Rapid Women 2024"]
[Site "Al Ain"]
[Date "2024.12.15"]
[Round "4.4"]
[White "Sabirova, Shakhnoza"]
[Black "Hotami, Mutriba"]
[Result "1-0"]
[ECO "B25"]
[WhiteElo "1903"]
[BlackElo "1882"]
[Annotator "RC"]
[PlyCount "109"]
[EventDate "2024.12.15"]
[EventType "swiss"]
[EventCountry "UAE"]
[SourceTitle "playchess.com"]
[Source "ChessBase"]
[SourceQuality "1"]
[TimeControl "900+10"]

1. e4 {[%emt 0:00:03]} c5 {[%emt 0:00:16]} 2. Nc3 {[%emt 0:00:03]} d6 {[%emt 0:00:07]} 3. g3 {[%emt 0:00:03]} Nf6 {[%emt 0:00:12]} 4. Bg2 {[%emt 0:00:03]} g6 {[%emt 0:00:08]} 5. d3 {[%emt 0:00:02]} Bg7 {[%emt 0:00:02]} 6. Nge2 {[%emt 0:00:03]} O-O {[%emt 0:00:23]} 7. O-O {[%emt 0:00:06]} Nc6 {[%emt 0:00:18]} 8. h3 {[%emt 0:00:14]} Nd4 {[%emt 0:00:40]} 9. Nxd4 {[%emt 0:00:22]} cxd4 {[%emt 0:00:02]} 10. Ne2 {[%emt 0:00:02]} e5 {[%emt 0:00:11]} 11. f4 {[%emt 0:00:06]} Bd7 {[%emt 0:01:46]} 12. Kh2 {[%emt 0:00:27]} Rc8 {[%emt 0:00:18]} 13. c3 {[%emt 0:00:18]} Qb6 {[%emt 0:02:12]} 14. g4 {[%emt 0:02:50]} Rfe8 {[%emt 0:02:53]} 15. c4 {[%emt 0:00:09]} Qc7 {[%emt 0:01:28]} 16. Ng3 {[%emt 0:00:45]} exf4 {[%emt 0:01:12]} 17. Bxf4 {[%emt 0:00:10]} Bc6 {[%emt 0:02:09]} 18. c5 {[%emt 0:00:37]} Bf8 {[%emt 0:00:38]} 19. Qf3 {[%emt 0:00:58]} Bb5 {[%emt 0:00:48]} 20. Bxd6 {[%emt 0:00:35]} Bxd6 {[%emt 0:00:09]} 21. cxd6 {[%emt 0:00:03]} Qxd6 {[%emt 0:01:23]} 22. Qxf6 {[%emt 0:00:08]} Qxf6 {[%emt 0:00:01]} 23. Rxf6 {[%emt 0:00:01]} Bxd3 {[%emt 0:00:02]} 24. Rd1 {[%emt 0:00:15]} Bb5 {[%emt 0:00:04]} 25. Rxd4 {[%emt 0:00:34]} Rc2 {[%emt 0:01:58]} 26. a4 {[%emt 0:00:18]} Bc6 {[%emt 0:00:00]} 27. Kg1 {[%emt 0:00:43]} Rxb2 {[%emt 0:00:00]} 28. Rf2 {[%emt 0:00:31]} Rb3 {[%emt 0:00:00]} 29. Kh2 {[%emt 0:00:47]} Ra3 {[%emt 0:00:00]} 30. Rb2 {[%emt 0:00:36]} Re5 {[%emt 0:00:00]} 31. Bf1 {[%emt 0:01:40]} Rc5 {[%emt 0:00:40]} 32. Bb5 {[%emt 0:00:31]} Rcc3 {[%emt 0:00:05]} 33. Rg2 {[%emt 0:01:52]} a6 {[%emt 0:00:16]} 34. Bxc6 {[%emt 0:00:05]} bxc6 {[%emt 0:00:00]} 35. e5 {[%emt 0:01:19]} c5 {[%emt 0:00:04]} 36. Rd8+ {[%emt 0:00:49]} Kg7 {[%emt 0:00:02]} 37. g5 {[%emt 0:00:14]} Re3 {[%emt 0:00:18]} 38. Rd7 {[%emt 0:01:12]} Rxe5 {[%emt 0:00:25]} 39. Rf2 {[%emt 0:00:04]} Rxg5 {[%emt 0:00:05]} 40. Rfxf7+ {[%emt 0:00:05]} Kg8 {[%emt 0:00:03]} 41. Rfe7 {[%emt 0:01:16]} Ra2+ {[%emt 0:00:08]} 42. Ne2 {[%emt 0:00:16]} Kf8 {[%emt 0:00:14]} 43. h4 {[%emt 0:00:06]} Rf5 {[%emt 0:00:11]} 44. Kg3 {[%emt 0:00:13]} Ra3+ {[%emt 0:00:04]} 45. Kg2 {[%emt 0:00:05]} Rxa4 {[%emt 0:00:29]} 46. Rxh7 {[%emt 0:00:08]} Kg8 {[%emt 0:00:09]} 47. Ng3 {[%emt 0:00:40]} Ra2+ {[%emt 0:00:08]} 48. Kh3 {[%emt 0:00:04]} Ra3 {[%emt 0:00:02]} 49. Rhg7+ {[%emt 0:00:06]} Kf8 {[%emt 0:00:11]} 50. Rxg6 {[%emt 0:00:04]} c4 {[%emt 0:00:13]} 51. Rc6 {[%emt 0:00:04]} Ke8 {[%emt 0:00:08]} 52. Ra7 {[%emt 0:01:05]} Rd5 {[%emt 0:00:16]} 53. Rh6 {[%emt 0:00:00]} Rf5 {[%emt 0:00:09]} 54. Rh8+ {[%emt 0:00:00]} Rf8 {[%emt 0:00:01]} 55. Ra8+ {[%emt 0:00:00]} 1-0

[Event "Asian Amateur Rapid Women 2024"]
[Site "Al Ain"]
[Date "2024.12.15"]
[Round "4.5"]
[White "Smaraki, Mohanty"]
[Black "Almaamari, Zainab Darwish"]
[Result "1-0"]
[ECO "A10"]
[WhiteElo "1745"]
[BlackElo "1751"]
[Annotator "NA RC"]
[PlyCount "106"]
[EventDate "2024.12.15"]
[EventType "swiss"]
[EventCountry "UAE"]
[SourceTitle "playchess.com"]
[Source "ChessBase"]
[SourceQuality "1"]
[TimeControl "900+10"]

1. c4 {[%emt 0:00:02]} d5 {[%emt 0:00:16]} 2. cxd5 {[%emt 0:00:06]} Qxd5 {[%emt 0:00:01]} 3. Nc3 {[%emt 0:00:01]} Qd8 {[%emt 0:00:03]} 4. d4 {[%emt 0:00:07]} e6 {[%emt 0:00:01]} 5. e4 {[%emt 0:00:02]} a6 {[%emt 0:00:02]} 6. Nf3 {[%emt 0:00:14]} Nf6 {[%emt 0:00:17]} 7. Bg5 {[%emt 0:00:53]} Be7 {[%emt 0:00:02]} 8. Be2 {[%emt 0:00:27]} h6 {[%emt 0:00:15]} 9. Bh4 {[%emt 0:00:11]} g5 {[%emt 0:15:43]} 10. Bg3 {[%emt 0:00:05]} g4 {[%emt 0:00:00]} 11. Ne5 {[%emt 0:00:11]} h5 {[%emt 0:00:00]} 12. Qa4+ {[%emt 0:04:27]} b5 {[%emt 0:00:00]} 13. Bxb5+ {[%emt 0:00:33]} axb5 {[%emt 0:00:00]} 14. Qxa8 {[%emt 0:00:11]} b4 {[%emt 0:00:00]} 15. Qxb8 {[%emt 0:02:36]} bxc3 {[%emt 0:00:00]} 16. bxc3 {[%emt 0:00:19]} O-O {[%emt 0:00:00]} 17. Nc6 {[%emt 0:00:32]} Qd7 {[%emt 0:00:00]} 18. Nxe7+ {[%emt 0:00:24]} Qxe7 {[%emt 0:00:00]} 19. Qxc7 {[%emt 0:00:03]} Qxc7 {[%emt 0:00:00]} 20. Bxc7 {[%emt 0:00:02]} Nxe4 {[%emt 0:00:00]} 21. Rc1 {[%emt 0:00:28]} Ba6 {[%emt 0:00:00]} 22. f3 {[%emt 0:00:17]} Nf6 {[%emt 0:00:00]} 23. Be5 {[%emt 0:01:57]} Nd5 {[%emt 0:00:00]} 24. Kd2 {[%emt 0:00:04]} Bc4 {[%emt 0:00:00]} 25. a4 {[%emt 0:00:08]} Ra8 {[%emt 0:00:00]} 26. Ra1 {[%emt 0:00:03]} Bb3 {[%emt 0:00:00]} 27. a5 {[%emt 0:00:05]} Rc8 {[%emt 0:00:00]} 28. Rhc1 {[%emt 0:00:17]} f6 {[%emt 0:00:00]} 29. Bd6 {[%emt 0:00:13]} Rd8 {[%emt 0:00:00]} 30. Bc5 {[%emt 0:00:11]} e5 {[%emt 0:00:00]} 31. a6 {[%emt 0:00:12]} exd4 {[%emt 0:00:00]} 32. cxd4 {[%emt 0:00:07]} Nf4 {[%emt 0:00:00]} 33. fxg4 {[%emt 0:00:40]} hxg4 {[%emt 0:00:00]} 34. a7 {[%emt 0:00:05]} Bd5 {[%emt 0:00:00]} 35. Rcb1 {[%emt 0:00:06]} Ra8 {[%emt 0:00:00]} 36. Rb8+ {[%emt 0:00:03]} Kg7 {[%emt 0:00:00]} 37. g3 {[%emt 0:00:21]} Ne6 {[%emt 0:00:00]} 38. Rxa8 {[%emt 0:00:03]} Bxa8 {[%emt 0:00:00]} 39. Rb1 {[%emt 0:00:13]} Bd5 {[%emt 0:00:00]} 40. Rb8 {[%emt 0:00:05]} Nc7 {[%emt 0:00:00]} 41. Rd8 {[%emt 0:00:21]} Be6 {[%emt 0:00:00]} 42. a8=Q {[%emt 0:00:13]} Nxa8 {[%emt 0:00:00]} 43. Rxa8 {[%emt 0:00:03]} Kg6 {[%emt 0:00:00]} 44. Ke3 {[%emt 0:00:07]} Kf5 {[%emt 0:00:00]} 45. Bd6 {[%emt 0:00:09]} Bd5 {[%emt 0:00:00]} 46. Ra5 {[%emt 0:00:03]} Ke6 {[%emt 0:00:00]} 47. Bb4 {[%emt 0:00:13]} Bb3 {[%emt 0:00:00]} 48. Kf4 {[%emt 0:00:03]} Bd1 {[%emt 0:00:00]} 49. d5+ {[%emt 0:00:03]} Kd7 {[%emt 0:00:00]} 50. Ra7+ {[%emt 0:00:02]} Kd8 {[%emt 0:00:00]} 51. d6 {[%emt 0:00:03]} Bf3 {[%emt 0:00:00]} 52. d7 {[%emt 0:00:10]} Be2 {[%emt 0:00:00]} 53. Ba5+ {[%emt 0:00:02]} Ke7 {[%emt 0:00:00]} 1-0

[Event "Asian Amateur Rapid Women 2024"]
[Site "Al Ain"]
[Date "2024.12.15"]
[Round "4.6"]
[White "Ahlam Rashed"]
[Black "Zhumabek, Nursaya"]
[Result "1-0"]
[ECO "D78"]
[WhiteElo "1987"]
[BlackElo "1448"]
[Annotator "RC"]
[PlyCount "101"]
[EventDate "2024.12.15"]
[EventType "swiss"]
[EventCountry "UAE"]
[SourceTitle "playchess.com"]
[Source "ChessBase"]
[SourceQuality "1"]
[TimeControl "900+10"]

1. Nf3 {[%emt 0:00:02]} Nf6 {[%emt 0:00:04]} 2. c4 {[%emt 0:00:01]} c6 {[%emt 0:00:07]} 3. g3 {[%emt 0:00:03]} g6 {[%emt 0:00:02]} 4. Bg2 {[%emt 0:00:01]} Bg7 {[%emt 0:00:02]} 5. d4 {[%emt 0:00:40]} d5 {[%emt 0:00:02]} 6. O-O {[%emt 0:01:07]} O-O {[%emt 0:00:06]} 7. Nc3 {[%emt 0:02:15]} Bf5 {[%emt 0:00:55]} 8. Ne5 {[%emt 0:00:45]} Nbd7 {[%emt 0:00:21]} 9. cxd5 {[%emt 0:00:33]} Nxe5 {[%emt 0:01:45]} 10. dxe5 {[%emt 0:00:08]} Nxd5 {[%emt 0:00:03]} 11. Nxd5 {[%emt 0:00:19]} cxd5 {[%emt 0:00:14]} 12. Bxd5 {[%emt 0:02:02]} Bxe5 {[%emt 0:00:14]} 13. Qb3 {[%emt 0:00:38]} Rb8 {[%emt 0:00:30]} 14. Bh6 {[%emt 0:00:49]} Bg7 {[%emt 0:00:18]} 15. Bxg7 {[%emt 0:01:40]} Kxg7 {[%emt 0:00:04]} 16. Rfd1 {[%emt 0:00:03]} Qc7 {[%emt 0:01:20]} 17. Rac1 {[%emt 0:00:14]} Qe5 {[%emt 0:00:18]} 18. Bf3 {[%emt 0:01:22]} Be6 {[%emt 0:01:04]} 19. Qa3 {[%emt 0:00:20]} a6 {[%emt 0:00:46]} 20. Rc5 {[%emt 0:00:55]} Qf6 {[%emt 0:00:28]} 21. Rc7 {[%emt 0:00:03]} Rfe8 {[%emt 0:01:06]} 22. Bxb7 {[%emt 0:00:12]} Qe5 {[%emt 0:01:03]} 23. Rxe7 {[%emt 0:01:09]} Rxe7 {[%emt 0:00:01]} 24. Qxe7 {[%emt 0:00:02]} Qxe2 {[%emt 0:00:07]} 25. Rb1 {[%emt 0:01:38]} Qb5 {[%emt 0:00:27]} 26. Bg2 {[%emt 0:00:29]} Bxa2 {[%emt 0:00:10]} 27. Ra1 {[%emt 0:00:38]} Qxb2 {[%emt 0:00:07]} 28. Rxa2 {[%emt 0:00:02]} Qxa2 {[%emt 0:02:08]} 29. Qe5+ {[%emt 0:00:02]} Kg8 {[%emt 0:00:04]} 30. Qxb8+ {[%emt 0:00:01]} Kg7 {[%emt 0:00:01]} 31. Qe5+ {[%emt 0:00:13]} Kg8 {[%emt 0:00:19]} 32. Bd5 {[%emt 0:00:15]} Qb1+ {[%emt 0:00:55]} 33. Kg2 {[%emt 0:00:02]} Qb5 {[%emt 0:00:10]} 34. Qd6 {[%emt 0:00:49]} a5 {[%emt 0:00:52]} 35. Qc6 {[%emt 0:00:04]} Qb8 {[%emt 0:00:13]} 36. Qb7 {[%emt 0:00:22]} Qe8 {[%emt 0:00:14]} 37. Qa8 {[%emt 0:00:04]} Qxa8 {[%emt 0:00:16]} 38. Bxa8 {[%emt 0:00:02]} Kf8 {[%emt 0:00:01]} 39. Kf3 {[%emt 0:00:07]} Ke7 {[%emt 0:00:01]} 40. Ke4 {[%emt 0:00:08]} Kd6 {[%emt 0:00:04]} 41. Bd5 {[%emt 0:00:03]} f6 {[%emt 0:00:22]} 42. Kd4 {[%emt 0:00:19]} h6 {[%emt 0:00:22]} 43. h4 {[%emt 0:00:20]} h5 {[%emt 0:00:29]} 44. Bf7 {[%emt 0:00:04]} g5 {[%emt 0:00:10]} 45. Bxh5 {[%emt 0:00:02]} gxh4 {[%emt 0:00:02]} 46. gxh4 {[%emt 0:00:02]} Ke6 {[%emt 0:00:08]} 47. Ke4 {[%emt 0:00:11]} f5+ {[%emt 0:00:14]} 48. Kf4 {[%emt 0:00:03]} Kf6 {[%emt 0:00:12]} 49. Bd1 {[%emt 0:00:02]} Kg6 {[%emt 0:00:25]} 50. h5+ {[%emt 0:00:03]} Kf6 {[%emt 0:00:04]} 51. f3 {[%emt 0:00:07]} 1-0